bitfinex/quotes_ETHUSD_20220109
["timestamp","ask_amount","ask_price","bid_price","bid_amount"]
[1641766880088,0.00511581,3197.5,3196.7,1.98176302]
[1641766880286,1.1767,3197.6,3196.7,1.98176302]
[1641766880287,0.00454739,3197.4,3196.7,1.98176302]
[1641766880486,0.00454739,3197.4,3197.1,0.78173]
[1641766880786,0.00397896,3197.3,3197.0,3.39247745]
[1641766881240,0.00511581,3197.5,3197.0,3.39247745]
[1641766881438,0.78685581,3197.5,3197.1,0.78173]
[1641766881639,0.00454739,3197.4,3197.1,0.78173]
[1641766881839,0.00454739,3197.4,3197.1,1.08173]
[1641766882041,0.00397896,3197.3,3197.1,1.08173]
[1641766882440,0.00511581,3197.5,3197.1,1.08173]
[1641766882639,1.08207263,3197.3,3197.1,1.08173]
[1641766882839,1.86385263,3197.3,3196.9,0.78189]
[1641766883040,1.08207263,3197.3,3196.7,1.5636393]
[1641766883339,1.08207263,3197.3,3196.7,3.1273493]
[1641766883943,1.2538762,3197.2,3196.7,3.1273493]
[1641766884139,1.2538762,3197.2,3196.9,0.7818627]
[1641766884341,0.00284212,3197.1,3196.9,0.7818627]
[1641766884540,0.00284212,3197.1,3196.9,1.0818627]
[1641766884740,0.00227369,3197.0,3196.9,1.0818627]
[1641766884985,0.00227369,3197.0,3196.9,1.8637427]
[1641766886888,0.00227369,3197.0,3196.9,1.08188]
[1641766887187,0.00227369,3197.0,3196.5,3.1]
[1641766887386,0.78201,3196.9,3196.5,3.1]
[1641766887587,0.78371527,3196.9,3196.5,3.1]
[1641766887787,0.00113685,3196.8,3196.5,3.1]
[1641766888387,0.00113685,3196.8,3196.5,3.4]
[1641766888656,1.16079746,3196.8,3196.5,3.4]
[1641766889644,1.94283746,3196.8,3196.5,3.4]
[1641766890748,1.94283746,3196.8,3196.5,3.1]
[1641766890949,0.78212,3196.7,3196.5,3.1]
[1641766891150,2.22625883,3196.6,3196.5,3.1]
[1641766891747,3.04303939,3196.6,3195.7,0.46434268]
[1641766891948,0.78229,3196.3,3195.7,0.46434268]
[1641766892148,0.78229,3196.3,3195.8,0.00454739]
[1641766892149,2.4925811,3196.2,3195.8,0.00454739]
[1641766892990,2.66362567,3196.1,3195.8,0.00454739]
[1641766893288,3.44591567,3196.1,3195.8,0.00454739]
[1641766893696,4.22820567,3196.1,3195.8,0.00454739]
[1641766893888,1.56447,3196.0,3195.8,0.00454739]
[1641766894290,4.22809567,3196.0,3195.8,0.00454739]
[1641766894991,1.56447,3196.0,3195.8,0.00454739]
[1641766897139,0.78237,3195.9,3195.0,0.5]
[1641766897338,2.18486323,3195.9,3195.8,2.1]
[1641766897537,0.504,3196.0,3195.8,2.1]
[1641766898138,2.66434976,3195.9,3195.8,2.1]
[1641766898437,2.66434976,3195.9,3195.2,1.08229]
[1641766898637,3.44666976,3195.9,3195.2,1.08229]
[1641766898839,3.44666976,3195.9,3195.3,0.00284212]
[1641766899041,3.44666976,3195.9,3195.2,1.07444621]
[1641766899239,0.00284212,3195.8,3195.2,1.07444621]
[1641766899636,0.0022737,3195.7,3195.2,1.07444621]
[1641766900091,2.66434976,3195.8,3195.4,0.78224]
[1641766900092,0.00170527,3195.6,3195.4,0.78224]
[1641766900489,0.00113685,3195.5,3195.4,1.08224]
[1641766900887,0.0022737,3195.5,3195.4,1.08224]
[1641766903290,0.0022737,3195.5,3195.4,0.3]
[1641766903493,0.7823,3195.4,3195.1,3.4289119]
[1641766903948,0.7823,3195.4,3195.2,0.78229]
[1641766905749,0.7823,3195.4,3195.2,1.5645299]
[1641766906051,0.7823,3195.4,3195.3,0.3]
[1641766907496,0.7823,3195.4,3195.3,2.4]
[1641766908099,0.0022737,3195.5,3195.4,0.78223]
[1641766908500,0.07822,3196.3,3195.4,0.78223]
[1641766908501,0.07822,3196.3,3195.4,2.68297671]
[1641766908700,0.07822,3196.3,3195.4,3.98468198]
[1641766908898,0.00284212,3196.2,3195.4,3.23906373]
[1641766909299,0.00227369,3196.1,3195.4,1.38197949]
[1641766909504,0.00227369,3196.1,3195.4,3.7252701]
[1641766909701,0.00170527,3196.0,3195.7,1.5639849]
[1641766909907,0.00170527,3196.0,3195.8,0.78209]
[1641766910102,0.00113685,3195.9,3195.8,1.08209]
[1641766910300,0.00113685,3195.9,3195.8,1.080254]
[1641766919853,0.00113685,3195.9,3195.8,1.862278]
[1641766921647,0.00113685,3195.9,3195.8,1.94255222]
[1641766921850,0.00113685,3195.9,3195.8,2.94255222]
[1641766927645,0.00113685,3195.9,3195.8,4.89849602]
[1641766927848,0.00113685,3195.9,3195.8,3.24255222]
[1641766928042,0.00113685,3195.9,3195.8,2.94255222]
[1641766929045,0.00113685,3195.9,3195.8,3.24255222]
[1641766931995,0.00113685,3195.9,3195.8,4.24255222]
[1641766932196,2.6637191,3196.6,3195.8,7.10551188]
[1641766932396,2.6637191,3196.6,3196.2,0.78184]
[1641766932595,0.00341054,3196.5,3196.2,0.78184]
[1641766932795,0.00341054,3196.5,3196.3,2.13382732]
[1641766932999,0.00284211,3196.4,3196.3,2.91566132]
[1641766933196,0.00284211,3196.4,3196.3,2.8353871]
[1641766933396,0.00284211,3196.4,3196.3,3.8353871]
[1641766933667,0.00284211,3196.4,3196.3,3.91566132]
[1641766934249,0.00284211,3196.4,3196.3,3.83746132]
[1641766934852,0.00284211,3196.4,3196.3,5.40113132]
[1641766935656,0.00102067,3196.9,3196.5,0.7817804]
[1641766935852,0.00102067,3196.9,3196.5,1.8141728]
[1641766936052,0.0022737,3196.8,3196.6,0.08027422]
[1641766936453,0.00170527,3196.7,3196.6,0.08027422]
[1641766936652,0.00170527,3196.7,3196.6,0.86206422]
[1641766936853,0.00170527,3196.7,3196.6,1.86206422]
[1641766937054,0.00170527,3196.7,3196.6,2.16206422]
[1641766937254,0.00170527,3196.7,3196.6,4.78981026]
[1641766937694,0.00170527,3196.7,3196.6,4.40953604]
[1641766937892,0.00170527,3196.7,3196.6,6.50953604]
[1641766938091,0.00170527,3196.7,3196.6,6.58773604]
[1641766938693,0.00170527,3196.7,3196.6,6.50953604]
[1641766942348,0.00170527,3196.7,3196.6,6.80953604]
[1641766943853,0.00170527,3196.7,3196.6,6.88773604]
[1641766945393,0.00170527,3196.7,3196.6,6.80953604]
[1641766955092,2.6379924,3197.4,3196.6,6.80953604]
[1641766955294,0.0043767,3197.3,3197.0,1.5635156]
[1641766955595,0.00341054,3197.3,3197.0,1.5635156]
[1641766956451,0.00341054,3197.3,3197.1,0.78176]
[1641766956647,0.00341054,3197.3,3196.6,2.1]
[1641766956648,0.78521054,3197.3,3196.7,0.7819353]
[1641766956846,0.78521054,3197.3,3196.6,2.1]
[1641766956847,0.00341054,3197.3,3196.6,2.1]
[1641766957449,0.00341054,3197.3,3196.6,2.88198]
[1641766957649,0.782,3196.9,3196.6,2.88198]
[1641766957849,0.782,3196.9,3196.6,2.4]
[1641766958652,0.782,3196.9,3196.6,0.8020485]
[1641766958855,0.782,3196.9,3196.6,1.5840385]
[1641766959155,0.778709,3196.9,3196.6,0.8020485]
[1641766959550,1.32777956,3196.7,3196.6,0.8020485]
[1641766960201,1.32777956,3196.7,3196.6,1.1020485]
[1641766964562,0.78203,3196.8,3196.6,1.1020485]
[1641766964859,0.78203,3196.8,3196.6,2.6659642]
[1641766966460,0.78203,3196.8,3196.6,1.8840085]
[1641766969095,0.78203,3196.8,3196.6,1.08196]
[1641766975502,2.66323425,3196.7,3196.6,1.08196]
[1641766976509,2.66323425,3196.7,3196.6,0.3]
[1641766977908,2.66323425,3196.7,3196.4,1.08205]
[1641766978107,3.44528425,3196.7,3196.4,1.08205]
[1641766978309,1.02684767,3196.6,3196.5,0.00113684]
[1641766978761,0.22684767,3196.6,3196.5,0.00113684]
[1641766979362,2.89008192,3196.6,3196.5,0.00113684]
[1641766979878,3.79478192,3196.6,3196.5,0.00113684]
[1641766980066,4.95748192,3196.6,3196.3,0.00227369]
[1641766980265,0.78226,3196.5,3195.7,0.00568423]
[1641766980563,0.78226,3196.5,3195.4,0.47855812]
[1641766980564,1.56468,3196.3,3195.5,0.00682108]
[1641766980763,1.37140118,3196.2,3195.5,0.00682108]
[1641766980965,0.78233,3195.9,3195.5,0.00682108]
[1641766981362,1.5647,3195.9,3195.5,0.00682108]
[1641766981563,1.19678067,3195.8,3195.5,0.00682108]
[1641766982166,3.86001492,3195.8,3195.5,0.00682108]
[1641766982600,1.56457,3195.7,3195.5,0.00682108]
[1641766982898,1.40752484,3195.6,3195.5,0.00682108]
[1641766986348,1.40752484,3195.6,3195.5,0.00325273]
[1641766986548,1.40752484,3195.6,3195.4,0.47824871]
[1641766987553,1.40752484,3195.6,3195.0,2.0647133]
[1641766987750,0.78235,3195.4,3195.1,0.3]
[1641766987949,0.78235,3195.4,3195.1,0.30227369]
[1641766988150,0.78235,3195.4,3195.1,0.00227369]
[1641766988449,2.97221484,3195.6,3195.4,0.01765]
[1641766989249,1.56469,3195.6,3195.1,0.00227369]
[1641766990008,1.56469,3195.6,3195.3,1.08229]
[1641766991307,1.56469,3195.6,3195.3,1.071621]
[1641766994949,0.78225,3195.6,3195.3,1.8538663]
[1641766997400,0.78225,3195.6,3195.3,3.64731067]
[1641766997600,0.78218,3195.9,3195.5,0.7822]
[1641766997801,0.78218,3195.9,3195.5,2.57684632]
[1641766998004,0.00170527,3195.8,3195.5,2.87684632]
[1641766998200,0.00170527,3195.8,3195.5,0.3]
[1641766998501,0.00113685,3195.7,3195.4,1.86438]
[1641766998706,0.00113685,3195.7,3195.6,1.5643793]
[1641766999204,0.00113685,3195.7,3195.6,1.8643793]
[1641767002852,0.00113685,3195.7,3195.6,1.08219]
[1641767003552,0.00113685,3195.7,3195.6,1.08221]
[1641767004351,0.00113685,3195.7,3195.6,2.89993096]
[1641767004552,0.00113685,3195.7,3195.6,1.08221]
[1641767005202,0.00113685,3195.7,3195.6,2.8986704]
[1641767005401,0.00113685,3195.7,3195.6,1.08221]
[1641767005602,0.00113685,3195.7,3195.6,2.90125927]
[1641767005806,0.00113685,3195.7,3195.6,1.08221]
[1641767006003,0.00113685,3195.7,3195.6,2.89895042]
[1641767007106,0.00113685,3195.7,3195.6,1.08221]
[1641767014404,0.00113685,3195.7,3195.6,3.12178872]
[1641767014804,0.00113685,3195.7,3195.6,2.08221]
[1641767015005,0.8,3195.8,3195.6,2.08221]
[1641767015205,0.8,3195.8,3195.7,1.56391]
[1641767015405,1.1957041,3196.7,3195.7,1.56391]
[1641767015605,1.1957041,3196.7,3195.7,2.56391]
[1641767015805,1.1957041,3196.7,3196.0,1.22560554]
[1641767015806,0.00454739,3196.5,3196.0,1.22560554]
[1641767016006,0.00454739,3196.5,3196.0,3.57134554]
[1641767016262,0.00397896,3196.4,3196.1,2.3457413]
[1641767016657,0.00341054,3196.3,3196.2,1.96073544]
[1641767017059,0.00341054,3196.3,3196.2,2.26073544]
[1641767017861,0.00341054,3196.3,3196.2,3.04265544]
[1641767020607,2.66325192,3196.8,3196.2,4.04265544]
[1641767020806,2.66325192,3196.8,3196.5,0.78177]
[1641767021008,0.00227369,3196.7,3196.6,2.11060617]
[1641767021410,2.66325192,3197.3,3196.6,2.11060617]
[1641767021605,2.66325192,3197.3,3196.6,3.46256939]
[1641767021805,2.66666246,3197.3,3196.6,1.65196322]
[1641767022006,2.66666246,3197.3,3196.7,1.83025416]
[1641767022207,0.00341054,3197.3,3196.7,1.83025416]
[1641767022608,0.00341054,3197.3,3196.7,1.82209547]
[1641767022810,0.00341054,3197.3,3196.9,0.78171]
[1641767023012,0.00341054,3197.3,3196.9,1.08171]
[1641767023214,0.00341054,3197.3,3196.9,0.3]
[1641767023668,0.00341054,3197.3,3196.7,2.64512]
[1641767023854,0.00341054,3197.3,3197.0,1.5635]
[1641767024061,0.00341054,3197.3,3197.0,1.56350001]
[1641767024062,2.66666246,3197.3,3197.0,1.56350001]
[1641767024255,2.66666246,3197.3,3197.0,1.5635]
[1641767025256,2.66666246,3197.3,3197.1,0.78174]
[1641767025457,2.66325192,3197.2,3197.1,1.08174]
[1641767026058,0.00341054,3197.3,3197.1,1.08174]
[1641767040255,0.73519054,3197.5,3197.1,1.08174]
[1641767040456,0.73519054,3197.5,3197.3,0.7818]
[1641767040655,0.73519054,3197.5,3197.3,1.0818]
[1641767048359,0.78174,3197.6,3197.3,1.0818]
[1641767048561,0.78174,3197.6,3197.4,1.5635545]
[1641767048759,0.78344527,3197.6,3197.4,1.5635545]
[1641767048960,2.66284245,3197.5,3197.4,1.5635545]
[1641767049159,2.66284245,3197.5,3197.4,1.8635545]
[1641767049560,2.66284245,3197.5,3197.2,1.56357]
[1641767049762,2.66284245,3197.5,3197.2,1.86357]
[1641767050809,2.66284245,3197.5,3197.4,1.5635545]
[1641767051404,2.66284245,3197.5,3197.4,1.8635545]
[1641767053659,0.78344527,3197.6,3197.4,1.8635545]
[1641767054857,0.78344527,3197.6,3197.4,0.3]
[1641767055056,0.78344527,3197.6,3197.2,1.86357]
[1641767056058,0.78344527,3197.6,3197.4,0.78183]
[1641767056658,0.78344527,3197.6,3197.4,0.3]
[1641767056859,2.66269931,3197.5,3197.4,0.3]
[1641767057059,2.66269931,3197.5,3197.3,0.78184]
[1641767057502,0.78344527,3197.6,3197.3,0.86211422]
[1641767058305,0.78344527,3197.6,3197.3,0.78184]
[1641767058909,2.66270804,3197.5,3197.3,0.78184]
[1641767061454,1.01560271,3197.4,3197.3,0.78184]
[1641767062055,3.67831075,3197.4,3197.3,0.78184]
[1641767064457,3.67831075,3197.4,3197.1,1.0478214]
[1641767064659,0.78183,3197.3,3197.1,1.0478214]
[1641767065910,2.66270804,3197.2,3197.1,1.0478214]
[1641767066307,2.66270804,3197.2,3197.1,1.34895824]
[1641767071763,0.78175,3197.5,3197.1,1.34895824]
[1641767071764,2.66270804,3197.4,3197.1,1.34895824]
[1641767071965,2.66270804,3197.4,3197.2,1.5634964]
[1641767073610,2.66270804,3197.4,3197.3,1.7663941]
[1641767073811,2.66270804,3197.4,3197.3,2.0663941]
[1641767074209,2.66270804,3197.5,3197.3,2.0663941]
[1641767074510,2.66270804,3197.5,3197.4,0.78172]
[1641767080215,2.66270804,3197.5,3197.4,2.78603784]
[1641767080412,2.66270804,3197.5,3197.4,0.86199422]
[1641767080614,2.66270804,3197.5,3197.4,0.78172]
[1641767081512,2.66270804,3197.8,3197.4,0.78172]
[1641767081717,2.66270804,3197.8,3197.4,0.77814]
[1641767081916,0.0022737,3197.7,3197.6,0.78162]
[1641767082315,0.0022737,3197.7,3197.6,1.08162]
[1641767082514,0.0022737,3197.7,3197.6,2.87481842]
[1641767089314,0.0022737,3197.7,3197.6,2.95509264]
[1641767102159,0.0022737,3197.7,3197.6,3.95509264]
[1641767102403,0.0022737,3197.7,3197.6,5.13225914]
[1641767104808,0.96666377,3198.2,3197.9,0.7815]
[1641767105008,0.96666377,3198.2,3197.9,2.867063]
[1641767105210,0.00227369,3198.1,3197.9,2.94733722]
[1641767105407,0.00227369,3198.1,3198.0,1.78921654]
[1641767105609,0.96666377,3198.2,3198.0,1.78921654]
[1641767105815,0.96666377,3198.2,3197.9,0.38027422]
[1641767106008,0.96666377,3198.2,3198.1,1.08153]
[1641767106261,0.9656431,3198.2,3198.1,1.08153]
[1641767106462,0.96848521,3198.2,3198.1,1.08153]
[1641767109564,0.96848521,3198.2,3198.0,2.3445415]
[1641767110006,0.00227369,3198.1,3198.0,2.3445415]
[1641767111308,0.00227369,3198.1,3198.0,2.6445415]
[1641767114957,0.00227369,3198.1,3198.0,2.72481572]
[1641767115157,0.9656431,3198.2,3198.0,2.72481572]
[1641767115358,0.9656431,3198.2,3198.1,0.3]
[1641767115761,1.1285,3198.7,3198.3,1.5627]
[1641767115963,9.08047375,3199.1,3198.3,1.5627]
[1641767116158,5.19827375,3199.1,3198.3,0.3]
[1641767116360,5.19827375,3199.1,3198.7,1.5627137]
[1641767116762,0.0085529,3199.1,3198.7,1.8627137]
[1641767117409,0.0085529,3199.1,3198.9,0.78135]
[1641767117606,0.0085529,3199.1,3198.9,1.5626971]
[1641767118006,0.0085529,3199.1,3198.9,1.8626971]
[1641767118608,0.0085529,3199.1,3199.0,0.3]
[1641767118808,0.0085529,3199.1,3198.8,2.14903272]
[1641767119009,0.01423714,3199.1,3198.8,2.14903272]
[1641767119810,0.01423714,3199.1,3198.9,1.5626971]
[1641767120309,0.01423714,3199.1,3199.0,0.3]
[1641767129878,0.78040826,3199.4,3199.0,0.3]
[1641767130079,0.78040826,3199.4,3199.2,0.78127]
[1641767130279,0.00113684,3199.3,3199.2,0.78127]
[1641767130482,0.00113684,3199.3,3199.2,1.08127]
[1641767131980,2.66231518,3199.3,3199.2,1.08127]
[1641767134828,2.66231518,3199.3,3198.8,1.56282]
[1641767134829,0.03395288,3199.2,3198.8,1.56282]
[1641767135026,0.78144,3199.1,3198.8,1.56282]
[1641767135227,0.78144,3199.1,3198.9,0.00113685]
[1641767135528,0.78144,3199.1,3198.5,1.5628521]
[1641767135731,1.25794597,3199.0,3198.7,1.56289]
[1641767135930,3.91912431,3199.0,3198.7,1.56289]
[1641767136176,3.91912431,3199.0,3198.8,0.00170527]
[1641767136364,4.70060431,3199.0,3198.8,0.00170527]
[1641767136764,4.78529681,3198.9,3198.8,0.00170527]
[1641767136970,4.78529681,3198.9,3198.2,1.56307]
[1641767137164,1.56317,3198.8,3198.4,0.00397897]
[1641767137367,1.06110882,3198.4,3198.3,0.00454739]
[1641767137865,1.06110882,3198.4,3198.0,0.00625266]
[1641767138065,2.62430882,3198.4,3198.0,0.00625266]
[1641767138467,2.62430882,3198.4,3198.0,0.30625266]
[1641767138867,0.7816,3198.3,3198.1,0.78728424]
[1641767139167,0.7816,3198.3,3198.2,0.00511582]
[1641767139568,5.28548716,3198.4,3198.2,0.00511582]
[1641767139767,2.66117834,3198.3,3198.0,0.00625266]
[1641767140007,1.37406101,3198.2,3198.0,0.00625266]
[1641767141810,2.15578101,3198.2,3198.0,0.00625266]
[1641767143665,4.20334155,3198.2,3198.0,0.00625266]
[1641767143965,4.20334155,3198.2,3197.3,1.56342]
[1641767143966,0.78181,3197.8,3197.4,0.0096632]
[1641767144360,1.15590871,3197.7,3197.4,0.0096632]
[1641767144560,1.15590871,3197.7,3197.4,0.7914132]
[1641767144760,0.78181,3197.8,3197.4,0.7914132]
[1641767144959,0.78181,3197.8,3197.5,0.00909478]
[1641767145360,1.56359,3197.6,3197.5,0.00909478]
[1641767145760,0.78181,3197.8,3197.6,0.78171]
[1641767146161,2.14525323,3197.9,3197.7,0.00795793]
[1641767150025,2.14525323,3197.9,3197.6,0.78171]
[1641767150424,0.7817,3197.9,3197.6,0.78171]
[1641767150625,1.56341,3198.0,3197.6,0.78171]
[1641767150626,0.7817,3197.8,3197.6,0.78171]
[1641767151272,0.7817,3197.8,3197.6,1.5633454]
[1641767151975,0.7817,3197.8,3197.6,0.7816354]
[1641767152171,0.7817,3197.8,3197.6,1.5633254]
[1641767152374,0.7817,3197.8,3197.6,0.7816354]
[1641767152572,0.7817,3197.8,3197.4,0.3]
[1641767152772,0.7817,3197.8,3197.3,1.8634047]
[1641767152972,0.7817,3197.8,3197.5,0.00113685]
[1641767156114,1.56352,3197.8,3197.5,0.00113685]
[1641767156315,0.78184,3197.7,3197.4,0.00170527]
[1641767159067,0.78184,3197.7,3197.4,0.78343917]
[1641767159266,0.78184,3197.7,3197.5,0.3]
[1641767160267,0.78184,3197.7,3197.4,0.00170527]
[1641767161567,0.78184,3197.7,3197.4,0.30170527]
[1641767163720,0.78184,3197.7,3197.5,0.78169]
[1641767164112,0.78184,3197.7,3197.4,0.30170527]
[1641767164920,0.78184,3197.7,3197.5,0.78171]
[1641767166565,0.00113684,3197.9,3197.5,0.78171]
[1641767167764,0.78166,3197.8,3197.6,1.5632917]
[1641767169665,0.78166,3197.8,3197.6,0.7816317]
[1641767170315,0.78166,3197.8,3197.6,1.5633617]
[1641767170515,0.999,3197.7,3197.6,1.5633617]
[1641767171116,0.999,3197.7,3197.6,0.7816317]
[1641767171516,0.999,3197.7,3197.6,0.77450263]
[1641767171918,0.999,3197.7,3197.6,1.55622263]
[1641767173667,0.999,3197.7,3197.6,0.77450263]
[1641767180216,3.66107303,3197.7,3197.6,0.77450263]
[1641767194021,1.29125686,3197.6,3197.4,0.7818039]
[1641767195221,2.66207303,3197.5,3197.4,0.7818039]
[1641767195723,2.66207303,3197.5,3197.4,0.78350917]
[1641767195927,4.14443386,3197.5,3197.4,0.78350917]
[1641767196968,4.14443386,3197.5,3197.4,0.00170527]
[1641767200221,2.66207303,3197.5,3197.4,0.00170527]
[1641767201422,2.66207303,3197.5,3197.3,1.51534767]
[1641767201621,2.66207303,3197.5,3197.3,0.73353767]
[1641767202022,2.66207303,3197.5,3197.2,0.78185]
[1641767202023,2.66207303,3197.5,3197.2,0.3]
[1641767202223,2.66207303,3197.5,3196.7,4.3506]
[1641767202622,2.66207303,3197.5,3197.0,0.7818801]
[1641767203027,2.66207303,3197.5,3197.1,0.00170527]
[1641767203224,1.34664981,3197.3,3197.1,0.00170527]
[1641767204068,0.78195,3197.2,3196.9,0.00284212]
[1641767204268,0.78197,3197.1,3196.9,0.78478162]
[1641767204671,0.78197,3197.1,3197.0,0.0022737]
[1641767205270,3.44404303,3197.1,3197.0,0.0022737]
[1641767205670,0.78197,3197.1,3197.0,0.0022737]
[1641767206071,0.78197,3197.1,3196.9,0.30284212]
[1641767206272,1.56394,3197.1,3197.0,0.0022737]
[1641767206671,1.56394,3197.1,3196.9,0.30284212]
[1641767207070,1.56394,3197.1,3197.0,0.0022737]
[1641767207913,0.78197,3197.1,3197.0,0.0022737]
[1641767209118,0.78197,3197.1,3196.7,0.00397897]
[1641767209816,0.78197,3197.1,3196.9,0.7819488]
[1641767210216,0.78197,3197.1,3197.0,0.0022737]
[1641767211464,3.44459637,3197.1,3197.0,0.0022737]
[1641767212865,3.44459637,3197.1,3196.9,1.5638988]
[1641767213667,0.78195,3197.2,3196.9,1.5638988]
[1641767214271,2.91057981,3197.3,3197.0,0.78191]
[1641767214469,2.91057981,3197.3,3196.6,1.56387]
[1641767214669,1.5638,3197.1,3196.6,1.56387]
[1641767214920,4.22648892,3197.1,3196.8,0.7819088]
[1641767215220,1.5638,3197.1,3196.9,0.3]
[1641767215619,1.5638,3197.1,3196.8,0.3]
[1641767215823,1.5638,3197.1,3196.9,0.78194]
[1641767216722,1.5638,3197.1,3196.9,1.5638517]
[1641767216925,1.5638,3197.1,3197.0,0.3]
[1641767218324,1.5638,3197.1,3196.9,1.5638517]
[1641767220062,1.5638,3197.1,3197.0,0.3]
[1641767224820,1.5638,3197.1,3196.9,0.3]
[1641767225017,1.5638,3197.1,3196.7,1.08368527]
[1641767225218,1.5638,3197.1,3196.8,0.7819559]
[1641767225416,1.5638,3197.1,3196.8,0.78309274]
[1641767225617,1.5638,3197.1,3196.9,0.3]
[1641767226470,1.5638,3197.1,3196.8,0.78309274]
[1641767227873,1.5638,3197.1,3196.9,0.3]
[1641767228275,1.5638,3197.1,3196.8,0.00113684]
[1641767228675,1.5638,3197.1,3196.6,0.00227369]
[1641767228878,1.5638,3197.1,3196.7,0.7819995]
[1641767229178,2.34582,3197.1,3196.8,0.00113684]
[1641767229379,0.78202,3197.0,3196.8,0.00113684]
[1641767230023,0.78202,3197.0,3196.8,0.30113684]
[1641767230222,0.78202,3197.0,3196.8,0.00113684]
[1641767231120,0.78202,3197.0,3196.8,1.08309684]
[1641767231720,0.78202,3197.0,3196.8,0.30113684]
[1641767232124,0.78202,3197.0,3196.8,1.08309684]
[1641767234073,0.78202,3197.0,3196.8,0.30113684]
[1641767236572,0.78202,3197.0,3196.8,0.00113684]
[1641767239116,2.66268023,3196.9,3196.8,0.00113684]
[1641767240820,2.66268023,3196.9,3196.7,0.56613634]
[1641767241019,2.66268023,3196.9,3196.7,0.86613634]
[1641767241468,2.66268023,3196.9,3196.7,1.64813584]
[1641767246227,0.78202,3197.0,3196.7,1.64813584]
[1641767246429,0.78202,3197.0,3196.8,0.78194]
[1641767246829,2.66267709,3196.9,3196.8,0.78194]
[1641767254820,2.66267709,3196.9,3196.8,1e-08]
[1641767255921,2.66267709,3196.9,3196.8,0.78194001]
[1641767265677,2.66267709,3196.9,3196.8,1.08194001]
[1641767267278,2.41267709,3196.9,3196.8,1.08194001]
[1641767270339,2.36267709,3196.9,3196.8,1.08194001]
[1641767273176,2.36267709,3196.9,3196.8,0.78194001]
[1641767273776,2.36267709,3196.9,3196.8,1e-08]
[1641767275131,5.63451443,3196.9,3196.8,1e-08]
[1641767275532,6.90841853,3196.9,3196.8,1e-08]
[1641767275734,25.20841853,3196.9,3196.0,0.78215]
[1641767275934,0.78215,3196.5,3196.0,0.78215]
[1641767276133,0.78215,3196.5,3195.5,8.9219]
[1641767276134,2.09186535,3196.4,3196.1,0.00397897]
[1641767276539,1.30908024,3196.0,3195.6,0.00682109]
[1641767277135,1.30908024,3196.0,3195.8,0.78215]
[1641767277339,0.78215,3195.9,3195.8,0.78215]
[1641767278341,0.78215,3195.9,3195.7,0.782163]
[1641767278538,0.78215,3195.9,3195.7,1.564383]
[1641767280989,0.78215,3195.9,3195.8,0.3]
[1641767281388,1.5643,3196.1,3195.8,0.3]
[1641767281891,1.5643,3196.1,3195.9,0.00511581]
[1641767282930,1.5643,3196.1,3195.8,0.00568424]
[1641767283931,3.58160044,3196.1,3195.8,0.00568424]
[1641767284334,1.5643,3196.1,3195.8,0.00568424]
[1641767285536,1.5643,3196.1,3195.8,0.30568424]
[1641767285835,1.5643,3196.1,3195.7,0.00625266]
[1641767286036,1.5643,3196.1,3195.7,0.30625266]
[1641767286488,1.5643,3196.1,3195.8,0.00568424]
[1641767286685,1.5643,3196.1,3195.8,0.30568424]
[1641767286887,1.5643,3196.1,3195.8,0.3]
[1641767287094,1.5643,3196.1,3195.7,0.00625266]
[1641767287587,1.5643,3196.1,3195.5,0.00738951]
[1641767288887,1.5643,3196.1,3195.7,0.78221]
[1641767289088,1.5643,3196.1,3195.7,1.08221]
[1641767289288,1.5643,3196.1,3195.8,0.00568424]
[1641767290130,0.18216631,3196.7,3194.7,1.01550219]
[1641767290332,0.00113685,3196.0,3194.9,0.08027422]
[1641767290733,0.78219,3195.6,3195.1,1.5644652]
[1641767290932,0.78219,3195.6,3194.8,0.00568423]
[1641767291133,0.78219,3195.6,3195.2,0.00341054]
[1641767291331,0.78219,3195.6,3194.5,2.0073895]
[1641767291533,0.78219,3195.6,3194.6,0.00682108]
[1641767291932,0.78219,3195.6,3195.0,0.7823044]
[1641767292238,0.78219,3195.6,3195.1,0.78629896]
[1641767292632,0.78219,3195.6,3195.2,0.00341054]
[1641767293231,0.78219,3195.6,3195.2,0.30341054]
[1641767293432,0.78219,3195.6,3195.3,0.7823]
[1641767293685,0.78219,3195.6,3195.3,1.08514212]
[1641767293882,0.78219,3195.6,3195.4,0.00227369]
[1641767295084,0.78219,3195.6,3195.3,1.0823]
[1641767298744,0.78219,3195.6,3195.3,1.8645541]
[1641767300335,0.78219,3195.6,3195.3,1.5645541]
[1641767300535,0.78219,3195.6,3195.3,0.7823]
[1641767301386,0.78219,3195.6,3195.3,1.564548]
[1641767302690,0.78219,3195.6,3195.3,0.7823]
[1641767303886,0.78219,3195.6,3195.3,1.0823]
[1641767307844,0.78219,3195.6,3195.3,1.8645443]
[1641767315341,0.78219,3195.6,3195.3,1.0823]
[1641767317482,0.78219,3195.6,3195.3,0.3]
[1641767317784,0.78219,3195.6,3195.1,0.7823]
[1641767317984,0.78219,3195.6,3195.1,1.0823]
[1641767318186,0.78219,3195.6,3195.2,0.00113685]
[1641767320130,0.78219,3195.6,3195.2,0.78341685]
[1641767320736,2.66385841,3195.5,3195.2,0.00113685]
[1641767320933,3.44617841,3195.5,3195.2,0.00113685]
[1641767321130,3.44617841,3195.5,3195.1,0.7823]
[1641767321333,0.78232,3195.5,3195.1,0.7823]
[1641767321531,0.78232,3195.5,3195.1,1.0823]
[1641767323982,2.66386272,3195.4,3195.1,1.0823]
[1641767324379,3.44616272,3195.4,3195.1,1.0823]
[1641767325382,0.7823,3195.4,3195.1,1.5645798]
[1641767326383,0.7823,3195.4,3195.1,0.7823]
[1641767328928,2.66402288,3195.3,3195.1,0.7823]
[1641767337633,2.66402288,3195.3,3195.1,0.6323]
[1641767340683,2.66402288,3195.3,3195.0,0.0022737]
[1641767340881,0.7824,3195.2,3195.0,0.0022737]
[1641767341084,0.7824,3195.2,3194.9,0.15009]
[1641767341288,0.7824,3195.2,3194.3,1.564775]
[1641767341484,2.66402288,3195.1,3194.3,1.564775]
[1641767341684,4.22885288,3195.1,3194.7,0.78243]
[1641767342084,4.22885288,3195.1,3194.8,0.00113684]
[1641767342729,3.44644288,3195.0,3194.8,0.00113684]
[1641767343330,2.66402288,3194.9,3194.8,0.00113684]
[1641767344030,0.78242,3195.0,3194.8,0.00113684]
[1641767346890,2.66425442,3194.9,3194.8,0.00113684]